Cogmind - Beta 14 @@@ ROGUE MODE // 2024.10.03 @ 17:28:56 Player: OctagonalPrism Result: Destroyed by G-47 Trooper with Particle Gun Performance ------------- Evolutions (1) 500 Regions Visited (4) 800 Robots Destroyed (74) 370 Value Destroyed (1517) 1517 Prototype IDs (6) 120 Alien Tech Used (0) 0 Bonus (75) 75 TOTAL SCORE: 3382 Bonus ------- High Alert Combat Kills 24 Follower Combat Kills 92 Friendly Fire -41 Cogmind --------- Core Integrity 0/400 Matter 246/300 Energy 265/265 System Corruption 0% Temperature Cool (9) Movement Treading (240) Ox1 Location -9/Mines Parts ------- > --- POWER (1) -------- Improved Ion Engine > --- PROPULSION (2) --- Light Treads Wheel > --- UTILITY (4) ------ Improved Heat Sink Medium Storage Unit Improved Terrain Scanner Terrain Scan Processor > --- WEAPON (2) ------- Field Laser > --- INVENTORY (10) --- Improved Ion Engine Huge Storage Unit Signal Interpreter Hacking Suite Plasma Cutter Maul Peak State ------------ > --- POWER ------------ Improved Ion Engine > --- PROPULSION ------- Light Treads Improved Treads > --- UTILITY ---------- Improved Heat Sink Small Storage Unit Improved Terrain Scanner Terrain Scan Processor > --- WEAPON ----------- Field Laser Field Laser > --- INVENTORY -------- Ion Engine Huge Storage Unit Signal Interpreter Field Laser Field Laser Mining Laser [Rating: 21] Favorites ----------- Power Improved Ion Engine Engine Improved Ion Engine Propulsion Light Treads Treads Light Treads Wheel Wheel Utility Terrain Scan Processor Device Improved Heat Sink Storage Medium Storage Unit Processor Terrain Scan Processor Weapon Medium Laser Energy Gun Medium Laser Special Weapon Plasma Cutter Impact Weapon Maul Build | -11 -10 -10 -9 -9 ------- Run | Yrd Mat Min Mat Min Slots Evolved 2 | . . . 2 . Power . | . . . . . Propulsion . | . . . . . Utility 2 | . . . 2 . Weapon . | . . . . . Parts Attached 47 | 6 6 . 31 4 Power 8 | 1 . . 7 . Engine 8 | 1 . . 7 . Core . | . . . . . Reactor . | . . . . . Propulsion 10 | 2 . . 7 1 Treads 8 | 2 . . 5 1 Leg . | . . . . . Wheel 2 | . . . 2 . Hover . | . . . . . Flight . | . . . . . Utility 9 | 1 2 . 5 1 Device 5 | . 1 . 3 1 Storage 3 | 1 1 . 1 . Processor 1 | . . . 1 . Hackware . | . . . . . Protection . | . . . . . Artifact . | . . . . . Weapon 20 | 2 4 . 12 2 Energy Gun 17 | 2 4 . 9 2 Energy Cannon . | . . . . . Ballistic Gun . | . . . . . Ballistic Cannon . | . . . . . Launcher . | . . . . . Special Weapon 1 | . . . 1 . Impact Weapon 2 | . . . 2 . Slashing Weapon . | . . . . . Piercing Weapon . | . . . . . Special Melee Weapon . | . . . . . Unidentified Prototypes . | . . . . . Parts Lost 10 | . . . 7 3 Power 2 | . . . 2 . Propulsion 4 | . . . 3 1 Utility 1 | . . . 1 . Weapon 3 | . . . 1 2 Highest Loss Streak 2 | . . . 2 2 To Critical Strikes . | . . . . . Average Slot Usage (%) 92 | . 96 100 90 89 Engine 11 | . 14 14 10 11 Treads 23 | . 28 28 21 8 Device 13 | . 11 14 14 17 Storage 11 | . 14 14 11 11 Processor 7 | . . . 11 11 Energy Gun 23 | . 27 28 21 16 Peak Build Rating 21 | 6 10 10 21 21 Average Rating 14 | 5 8 10 18 17 On Entrance 8 | . 6 10 10 17 Naked Turns . | . . . . . Heaviest Build 25 | 14 15 15 25 25 Greatest Support 46 | 40 40 40 46 20 Greatest Overweight (x) 2 | . . . 2 2 Average Overweight (x) . | . . . . 1 Largest Inventory Capacity 25 | 8 25 8 10 10 Average Capacity 9 | 7 8 8 9 10 Most Carried 10 | 3 8 8 10 8 Average Carried 6 | 2 4 8 7 7 Final Capacity 10 | 8 8 8 10 10 Final Carried 8 | 3 8 8 8 6 Class Distribution -------------------- 63% | Mutant 36% | Scavenger-Mutant Dominant Class ---------------- Mutant | -10/Materials Mutant | -10/Mines Scavenger-Mutant | -9/Materials Scavenger-Mutant | -9/Mines Resources | -11 -10 -10 -9 -9 ----------- Run | Yrd Mat Min Mat Min Matter Collected 571 | 223 97 . 230 21 Remotely . | . . . . . Salvage Created 2320 | 141 630 . 1487 62 Parts 146 | 16 35 . 87 8 Haulers Intercepted 5 | . 2 . 3 . Recyclers Shooed . | . . . . . Parts Field Recycled . | . . . . . Retrieved Matter . | . . . . . Parts Self-Destructed . | . . . . . Prevented . | . . . . . Kills | -11 -10 -10 -9 -9 ------- Run | Yrd Mat Min Mat Min Combat Hostiles Destroyed 38 | . 9 . 28 1 Guns 34 | . 7 . 26 1 Classes Destroyed 11 | 3 5 . 2 1 Worker 5 | 1 1 . 3 . Builder 7 | . 6 . 1 . Tunneler 8 | 3 . . 3 2 Hauler 5 | . 2 . 3 . Recycler 1 | 1 . . . . Operator 4 | . . . 4 . Watcher 6 | . 2 . 4 . Swarmer 8 | . 3 . 5 . Grunt 22 | . 6 . 16 . Sentry 7 | . . . 7 . Demolisher 1 | . . . . 1 Best Kill Streak 5 | 3 4 . 5 2 Combat Bots Only 4 | . 4 . 4 1 Max Kills in Single Turn 2 | 1 2 . 2 1 Gunslinging 1 | . . . 1 . Exploded . | . . . . . Melee . | . . . . . Uniques/NPCs Destroyed . | . . . . . Combat | -11 -10 -10 -9 -9 -------- Run | Yrd Mat Min Mat Min Hostile Shots Fired 225 | . 39 . 173 13 Missed 64 | . 12 . 49 3 Damage Taken 2151 | . 287 . 1597 267 Core 448 | . 47 . 298 103 Absorbed by Shields . | . . . . . Regen/Repaired (Parts) 138 | . . . 138 . Core Remaining (%) 90 | 100 . 81 . . Volleys Fired 184 | 7 56 . 115 6 Largest 2 | 2 2 . 2 2 Hottest 126 | 100 100 . 126 119 Shots Fired 365 | 14 112 . 228 11 Gun 363 | 14 112 . 226 11 Cannon . | . . . . . Launcher . | . . . . . Special 2 | . . . 2 . Kinetic . | . . . . . Thermal 365 | 14 112 . 228 11 Explosive . | . . . . . Electromagnetic . | . . . . . Robot Hit Streak 17 | 5 8 . 17 5 Robot Miss Streak 4 | 1 4 . 3 2 Penetration Max . | . . . . . Secondary Targets 7 | . 3 . 3 1 Max Gunslinging Chain 1 | . 1 . 1 1 Shots Hit Robots 245 | 9 65 . 163 8 Core Hits 92 | 6 28 . 56 2 Critical Kills . | . . . . . Critical Parts Destroyed . | . . . . . Critical Strikes 38 | 1 16 . 21 . Burn 38 | 1 16 . 21 . Melee Attacks 3 | . . . 2 1 Impact 3 | . . . 2 1 Slashing . | . . . . . Piercing . | . . . . . Sneak Attacks 1 | . . . . 1 Combat Hostiles . | . . . . . Follow-up Attacks . | . . . . . Damage Inflicted 4046 | 113 864 . 2875 194 Guns 3943 | 113 864 . 2863 103 Cannons . | . . . . . Explosions . | . . . . . Melee 91 | . . . . 91 Ramming . | . . . . . Kinetic . | . . . . . Thermal 3955 | 113 864 . 2875 103 Explosive . | . . . . . Electromagnetic . | . . . . . Impact 91 | . . . . 91 Slashing . | . . . . . Piercing . | . . . . . Highest Corruption . | . . . . . Average Corruption . | . . . . . Corruption Purged . | . . . . . Corruption Blocked . | . . . . . Overload Shots . | . . . . . Overflow Damage 51 | . . . . 51 Projectiles . | . . . . . Explosions . | . . . . . Melee 51 | . . . . 51 Knockbacks . | . . . . . Impact . | . . . . . Kinetic . | . . . . . Secondary . | . . . . . Self-Inflicted Damage . | . . . . . Shots . | . . . . . Rammed . | . . . . . Targets Rammed . | . . . . . Kicked . | . . . . . Crushed . | . . . . . Highest Temperature 373 | 157 373 . 153 46 Average Temperature 55 | 54 94 . 26 16 Received Heat Transfer 903 | . 123 . 732 48 Effects 1 | . 1 . . . Energy Bleed 1 | . 1 . . . Siege Activations . | . . . . . Robots Corrupted . | . . . . . Combat Hostiles . | . . . . . Parts Fried 2 | . . . . 2 Impact Corruptions 1 | . . . . 1 Robots Melted 4 | . 2 . 2 . Combat Hostiles 4 | . 2 . 2 . Parts Melted 37 | . 15 . 22 . Heat Transferred 12247 | 407 3737 . 7881 222 Parts Sabotaged . | . . . . . Parts Stolen . | . . . . . Parts Stripped . | . . . . . Power Chain Reactions . | . . . . . Alert | -11 -10 -10 -9 -9 ------- Run | Yrd Mat Min Mat Min Peak Influence 475 | 25 195 40 475 178 Initial 153 | . 16 40 15 153 Average 180 | 13 118 40 232 155 Maximum Alert Level 2 | . . . 2 . Low Security (%) 66 | 100 100 100 44 100 Level 1 26 | . . . 44 . Level 2 6 | . . . 10 . Level 3 . | . . . . . Level 4 . | . . . . . Level 5 . | . . . . . High Security . | . . . . . Max Security . | . . . . . Squads Dispatched 7 | . 1 . 6 . Investigation 4 | . 1 . 3 . Extermination . | . . . . . Reinforcement 2 | . . . 2 . Assault 1 | . . . 1 . Garrison . | . . . . . Intercept . | . . . . . Searches Triggered . | . . . . . Construction Impeded . | . . . . . Haulers Reinforced . | . . . . . Active Scanning Responses . | . . . . . Cargo Convoy Interrupts . | . . . . . Stealth | -11 -10 -10 -9 -9 --------- Run | Yrd Mat Min Mat Min Distress Signals 3 | . 1 . 2 . Communications Jammed . | . . . . . Distress Signals . | . . . . . Times Spotted 81 | . 17 . 53 11 Peak Tracking Total 9 | . 5 . 6 9 Tactical Retreats 9 | . 1 . 7 1 Traps | -11 -10 -10 -9 -9 ------- Run | Yrd Mat Min Mat Min Traps Triggered 1 | . . . 1 . Indirectly . | . . . . . Trap Hack Attempts . | . . . . . Triggered . | . . . . . Disarmed . | . . . . . Reprogrammed . | . . . . . Reused . | . . . . . Traps Extracted . | . . . . . Installed . | . . . . . Triggered . | . . . . . Machines | -11 -10 -10 -9 -9 ---------- Run | Yrd Mat Min Mat Min Machines Disabled 1 | . . . 1 . Max in Single Turn 1 | . . . 1 . Machines Repaired . | . . . . . Machines Dismantled 1 | . . . 1 . Machines Sabotaged . | . . . . . Overloaded Fab Kills . | . . . . . Hacking | -11 -10 -10 -9 -9 --------- Run | Yrd Mat Min Mat Min Machines Accessed 19 | . 8 . 11 . Terminals 14 | . 7 . 7 . Fabricators . | . . . . . Repair Stations 1 | . . . 1 . Recycling Units 2 | . 1 . 1 . Scanalyzers 2 | . . . 2 . Garrison Access . | . . . . . Total Hacks 72 | . 26 . 46 . Successful 53 | . 16 . 37 . Failed 19 | . 10 . 9 . Catastrophic 2 | . . . 2 . Database Lockouts . | . . . . . Manual 21 | . 8 . 13 . Terminals 52 | . 24 . 28 . Fabricators . | . . . . . Repair Stations 5 | . . . 5 . Recycling Units 4 | . 2 . 2 . Scanalyzers 11 | . . . 11 . Garrison Access . | . . . . . Terminal Hacks 23 | . 9 . 14 . Robot Analysis 1 | . 1 . . . Prototype ID Bank 3 | . 2 . 1 . Branch Access Points 1 | . 1 . . . Emergency Access Points 2 | . . . 2 . Terminal Index 1 | . . . 1 . Recycling Unit Index 1 | . . . 1 . Alert Level 4 | . 1 . 3 . Unreport Threat 1 | . . . 1 . Locate Traps 3 | . 2 . 1 . Hauler Manifests 1 | . . . 1 . Zone Layout 5 | . 2 . 3 . Fabricator Hacks . | . . . . . Repair Station Hacks 4 | . . . 4 . Scan Component 2 | . . . 2 . Repair 2 | . . . 2 . Recycling Unit Hacks 2 | . 1 . 1 . Report Inventory 2 | . 1 . 1 . Scanalyzer 10 | . . . 10 . Insert Component 5 | . . . 5 . Analyze 5 | . . . 5 . Garrison Access Hacks . | . . . . . Unauthorized Hacks 14 | . 6 . 8 . Terminals 12 | . 5 . 7 . Assimilate 2 | . . . 2 . Botnet 7 | . 3 . 4 . Disrupt 1 | . 1 . . . Operators 2 | . 1 . 1 . Fabricators . | . . . . . Repair Stations . | . . . . . Recycling Units 2 | . 1 . 1 . Tunnel 2 | . 1 . 1 . Scanalyzers . | . . . . . Garrison Access . | . . . . . Data Cores Recovered . | . . . . . Used . | . . . . . Hacking Detections 17 | . 6 . 11 . Full Trace Events 2 | . . . 2 . Feedback Events . | . . . . . Feedback Blocked . | . . . . . Robot Schematics Acquired . | . . . . . Robots Built . | . . . . . Authchips . | . . . . . Time . | . . . . . Total Robot Build Rating . | . . . . . Part Schematics Acquired 5 | . . . 5 . Parts Built . | . . . . . Authchips . | . . . . . Time . | . . . . . Total Part Build Rating . | . . . . . Parts Repaired 2 | . . . 2 . Time 64 | . . . 64 . Parts Recycled . | . . . . . Recycled Matter . | . . . . . Retrieved Matter . | . . . . . Retrieved Components . | . . . . . Parts Scanalyzed 5 | . . . 5 . Part Schematics Acquired 5 | . . . 5 . Parts Damaged . | . . . . . Bothacking | -11 -10 -10 -9 -9 ------------ Run | Yrd Mat Min Mat Min Used RIF Installer . | . . . . . Robots Hacked . | . . . . . Non-combat . | . . . . . Combat . | . . . . . Robot Hacks Applied . | . . . . . Relay Couplers Released . | . . . . . Fabnet Peak Effective % . | . . . . . Robots Rewired . | . . . . . Allies Hacked . | . . . . . Hacks Repelled . | . . . . . Allies | -11 -10 -10 -9 -9 -------- Run | Yrd Mat Min Mat Min Total Allies 3 | . . 3 . . Largest Group 3 | . . 3 3 . Highest-Rated Group 40 | . . 40 40 . Highest-Rated Ally 16 | . . 16 16 . Total Orders . | . . . . . Ally Attacks 19 | . . . 19 . Total Damage 214 | . . . 214 . Kills 4 | . . . 4 . Allies Corrupted . | . . . . . Allies Melted . | . . . . . Intel | -11 -10 -10 -9 -9 ------- Run | Yrd Mat Min Mat Min Robot Analysis Total 1 | . 1 . . . Derelict Logs Recovered . | . . . . . Drone Launches . | . . . . . Drone Recoveries . | . . . . . Exploration | -11 -10 -10 -9 -9 ------------- Run | Yrd Mat Min Mat Min Turns Passed 3459 | 205 1023 44 2087 100 Spaces Moved 1583 | 112 507 27 873 64 Core 7 | 7 . . . . Treads 1492 | 105 507 27 851 2 Legs . | . . . . . Wheels 84 | . . . 22 62 Hover . | . . . . . Flight . | . . . . . Fastest Speed 50 | 50 160 160 95 110 Average Speed 157 | 153 160 160 159 114 Slowest Speed 240 | 160 160 160 240 240 Overloaded Moves . | . . . . . Propulsion Burnouts . | . . . . . Robots Hopped . | . . . . . Cave-ins Triggered . | . . . . . Exploration Rate (%) 42 | 9 78 9 75 41 Regions Visited 4 Branch Regions 2 Pre-discovered Areas 2 | . 1 . 1 . Known Exits Taken 1 | . 1 . . . Unknown Exits Taken 3 | 1 . 1 1 . Scrap Searched . | . . . . . Spaces Dug 2 | . . . 2 . Terrain Destroyed 2 | . . . 2 . Melee 2 | . . . 2 . Projectile . | . . . . . AOE . | . . . . . Terrain Rammed . | . . . . . Walls Destroyed . | . . . . . Machines Disabled . | . . . . . Actions | -11 -10 -10 -9 -9 --------- Run | Yrd Mat Min Mat Min Total 2166 | 129 608 28 1323 78 Wait 307 | 2 28 2 272 3 Move 1579 | 111 506 26 872 64 Hop . | . . . . . Pick Up 19 | 3 5 . 11 . Fast Attach 17 | 6 3 . 7 1 Attach 10 | . 1 . 7 2 Detach 4 | . 3 . 1 . Swap 20 | . 2 . 17 1 Drop 19 | . 4 . 15 . Fire 184 | 7 56 . 115 6 Melee 3 | . . . 2 1 Ram . | . . . . . Kick . | . . . . . Crush . | . . . . . Escape Stasis . | . . . . . Rewire . | . . . . . Trap . | . . . . . Miscellaneous 4 | . . . 4 . Route ------- -11/Scrapyard -10/Materials (discovered 5 exits: *Mat x3 / *Min x2) -10/Mines -9/Materials (discovered 3 exits: [*Mat x2] / [*Min]) -9/Mines History --------- Turn | Location | Event 59 | -11/Scrapyard | Discovered new exit (range 12) 206 | -11/Scrapyard | Entered Materials 214 | -10/Materials | Identified exit to Mines 306 | -10/Materials | Build established: Mutant 431 | -10/Materials | Discovered new exit (range 5) 711 | -10/Materials | Discovered new exit (range 15) 832 | -10/Materials | Discovered new exit (range 9) 1229 | -10/Materials | Entered Mines 1229 | -10/Mines | Discovered new exit (range 12) 1245 | -10/Mines | Met a Derelict bent on vengeance 1263 | -10/Mines | Assisted by bots powering up and referring to "LRC-V3" 1273 | -10/Mines | Entered Materials 1273 | -9/Materials | Accompanied by 3 allies 1273 | -9/Materials | Evolved 2 slots: Utility x2 1519 | -9/Materials | Discovered new exit (range 16) 2009 | -9/Materials | Build established: Scavenger-Mutant 2157 | -9/Materials | Discovered new exit (range 10) 2398 | -9/Materials | Repaired Imp. Ion Engine 2431 | -9/Materials | Repaired Imp. Treads 3086 | -9/Materials | Core integrity fell below 50% 3153 | -9/Materials | Discovered new exit (range 11) 3273 | -9/Materials | First assault squad dispatched 3360 | -9/Materials | Entered Mines 3400 | -9/Mines | Assembled infested the area 3421 | -9/Mines | Core integrity fell below 20% 3460 | -9/Mines | Destroyed by G-47 Trooper with Particle Gun Last Messages --------------- Imp. Terrain Scanner fried. T-07 Excavator destroyed. Acquired 10 matter. T-07 Excavator destroyed. ALERT: Infestation in the mines, dispatching Demolisher response squad. Acquired Imp. Terrain Scanner. Acquired 11 matter. C-30 ARC bursts open, deploying its payload. D-53 Grenadier unfolds itself. Imp. Treads destroyed. Field Laser destroyed. as-86370 destroyed. as-39103 destroyed. as-61563 destroyed. The unstable cave ceiling collapses. D-53 Grenadier destroyed. Switching to secondary target: G-34 Mercenary. Imp. Medium Laser destroyed. The unstable cave ceiling collapses. Map ----- +----------------------------------------------------+ | | | | | | | | | | | | | | | | | | | ???????????????????????#??#??????????????????????? | | ????????????????????????#?#???###??#?????????????? | | ?????????????????????????????#???????????????????? | | ??????????????????#???????#??#????#?#????????????? | | ???????????????????????????#????#????????????????? | | ??????????????? ???????#??????????#??????????????? | | ?????????????????#?##########???#????????????????? | | ???????????? ????? ? ##??????????#????????? | | ???????????????? ?? #####???????????????? | | ????????????? ? ? ???#gg ####??????????????? | | ????????????? ??????## #??????????????? | | ??????????????????#???# ?##??? ????????? | | ????????????? ???????## r#?????? ?????????? | | ??????????? ?? ??????# #??? ??? ? ???????? | | ??????????? ? ?#????# # ##?? ??? ???????? | | ?????????????????????## ## ?? ????????? | | ????????????? ??#????## @ ## ???????????? | | ??????????? ?????#???## ## ? ? ?????????? | | ????????????????#?#??#### ####? ? ?#? ???????? | | ????????????????##????#?# #????? ????? ?????? | | ????????????????????##?##=*#??# ? "%##??????????? | | ???????????????#?#?#??## ]%#??#?? "#????#??????? | | ????????????????#?#???# =!##???#? ##????????#?? | | ?????????????##??##???# ##???? #??????????? | | ??????????????????#?#?# ####?# ##?????????? | | ????????????#??#?##???# ###?## #??????????? | | ???????????????????#??# ##?## ####????????? | | ?????????????#???#?#?## #### ##??#?????#? | | ?????????????????????## ## ###????????? | | ??????????????#???????## ## #?????#?? | | ??????????????????#???## ## #???#???? | | ???????????????#?#???## #??????? | | ??????????????????????# % #?? | | ?????????????######???# = #? | | ?????????????## ##??### ### #? | | ????????????## #???## ### #? | | ???????????## ##### #?? #? | | ???##?????## ## #?#? ?? #? | | ?? #???## ##????? ???? ?? | | ?? #### ##???????????? #?? | | ?? ###?????? ?????????? | +----------------------------------------------------+ Best States ------------- Heat Dissipation 42 Energy Generation 12 Energy Capacity 265 Matter Stores 300 Matter Capacity 300 Sight Range 16 Terrain Scan Range 16 Terrain Scan Density 85 Evasion (%) 41 Recoil Reduction 2 Item Schematics ----------------- Imp. Treads | -9/Materials | Scanalyzed Signal Interpreter | -9/Materials | Scanalyzed Field Laser | -9/Materials | Scanalyzed Huge Storage Unit | -9/Materials | Scanalyzed Imp. Medium Laser | -9/Materials | Scanalyzed Robot Schematics ------------------ None Fabricated ------------ Nothing Alien Tech Used ----------------- None Achievements -------------- None Challenges ------------ None Game ------ Seed SiegePropulsionThrower Manual? 0 Play Time 00:28:21 Cumulative 137.1 hours Start 2024.10.03 @ 17:01:47 End 2024.10.03 @ 17:28:56 Sessions 1 Manual Loads 0 Difficulty Rogue Special Mode None Game No. 120 Rogue 120 Adventurer 0 Explorer 0 Win Type - Total 1 Types 1/0/0/0/0/0/0/0/0 Lore% 55 Gallery% 60 Achievement% 46 Wizard Run 0 Options --------- Layout 2 ASCII 0 Keyboard 0 Movement Numpad Keybinds 0 Fullscreen 1 Font 16/Terminus Map View 55x47 Zoom Use 0% Tactical HUD 0 Map Filters NONE Filters NONE Steam 1 RUN: 3b1e1919-12d7-4b96-9cd8-55416c43d302